bitfinex/quotes_BTCUSD_20251031
["timestamp","ask_amount","ask_price","bid_price","bid_amount"]
[1761883233439,3.70962846,109450.0,109440.0,0.052]
[1761883233643,3.764693,109450.0,109440.0,0.052]
[1761883234312,3.76417557,109450.0,109440.0,0.052]
[1761883234725,3.74984419,109450.0,109440.0,0.052]
[1761883235573,3.78602647,109450.0,109440.0,0.052]
[1761883236406,3.78602647,109450.0,109440.0,0.05]
[1761883236614,3.78802647,109450.0,109440.0,0.05]
[1761883236822,3.78976828,109450.0,109440.0,0.05]
[1761883237248,3.30088092,109450.0,109440.0,0.05]
[1761883237456,3.72596345,109450.0,109440.0,0.05]
[1761883238068,3.74029527,109450.0,109440.0,0.05]
[1761883238269,3.73629527,109450.0,109440.0,0.05]
[1761883238477,3.73629527,109450.0,109440.0,0.052]
[1761883238897,3.73629036,109450.0,109440.0,0.052]
[1761883240193,3.799837,109450.0,109440.0,0.052]
[1761883241252,3.799837,109450.0,109440.0,0.05]
[1761883241474,3.77221445,109450.0,109440.0,0.05]
[1761883241690,3.77621445,109450.0,109440.0,0.05]
[1761883241905,3.37857391,109450.0,109440.0,0.05]
[1761883242126,3.77221445,109450.0,109440.0,0.05]
[1761883242359,3.37557391,109450.0,109440.0,0.05]
[1761883242829,3.77321445,109450.0,109440.0,0.05]
[1761883243474,3.74577246,109450.0,109440.0,0.05]
[1761883243689,3.77321445,109450.0,109440.0,0.05]
[1761883243921,3.74577246,109450.0,109440.0,0.05]
[1761883244143,3.77321445,109450.0,109440.0,0.05]
[1761883244766,3.800837,109450.0,109440.0,0.05]
[1761883244991,3.801837,109450.0,109440.0,0.05]
[1761883245410,3.800837,109450.0,109440.0,0.05]
[1761883245616,3.8006825,109450.0,109440.0,0.05]
[1761883245815,3.80042431,109450.0,109440.0,0.05]
[1761883247187,3.77280176,109450.0,109440.0,0.05]
[1761883248098,4.1714423,109450.0,109440.0,0.05]
[1761883248298,3.75946994,109450.0,109440.0,0.05]
[1761883249037,3.75846994,109450.0,109440.0,0.05]
[1761883249235,3.75946994,109450.0,109440.0,0.05]
[1761883249514,3.75846994,109450.0,109440.0,0.05]
[1761883249720,3.75946994,109450.0,109440.0,0.05]
[1761883250781,3.25946994,109450.0,109440.0,0.05]
[1761883250991,3.25837857,109450.0,109440.0,0.05]
[1761883251405,3.25812038,109450.0,109440.0,0.05]
[1761883251556,3.25806958,109450.0,109440.0,0.05]
[1761883251776,3.27240741,109450.0,109440.0,0.05]
[1761883251994,3.27209737,109450.0,109440.0,0.05]
[1761883252465,3.27211165,109450.0,109440.0,0.05]
[1761883253073,3.23592937,109450.0,109440.0,0.05]
[1761883253275,3.27311165,109450.0,109440.0,0.05]
[1761883254061,3.67075219,109450.0,109440.0,0.05]
[1761883254267,4.25405201,109440.0,109430.0,1e-08]
[1761883254469,4.38605266,109440.0,109430.0,1e-08]
[1761883254620,4.39705265,109440.0,109430.0,1e-08]
[1761883254832,4.42467419,109440.0,109430.0,1e-08]
[1761883255062,4.45215871,109440.0,109430.0,1e-08]
[1761883255204,4.45115871,109440.0,109430.0,1e-08]
[1761883255667,4.45515871,109440.0,109430.0,1e-08]
[1761883256106,4.44515872,109440.0,109430.0,1e-08]
[1761883256261,4.45515871,109440.0,109430.0,1e-08]
[1761883256476,4.45615871,109440.0,109430.0,1e-08]
[1761883256688,4.45600526,109440.0,109430.0,1e-08]
[1761883258390,4.45574695,109440.0,109430.0,1e-08]
[1761883259698,4.49192923,109440.0,109430.0,1e-08]
[1761883259916,2.22461085,109390.0,109380.0,0.01176]
[1761883260121,2.64307139,109390.0,109380.0,0.02751268]
[1761883260773,2.45170325,109390.0,109380.0,0.02751268]
[1761883260994,2.04018271,109390.0,109380.0,0.23338146]
[1761883261200,0.33146392,109390.0,109380.0,0.26980518]
[1761883261416,0.33146392,109390.0,109380.0,0.24438146]
[1761883261657,0.34353284,109390.0,109380.0,0.24438146]
[1761883263250,0.01206892,109390.0,109380.0,0.24438146]
[1761883263452,0.39764054,109400.0,109390.0,0.18283206]
[1761883263719,0.4656739,109400.0,109390.0,0.23288206]
[1761883264150,0.40974253,109400.0,109390.0,0.23288206]
[1761883264433,0.00694,109440.0,109420.0,0.1827774]
[1761883264628,0.00694,109440.0,109430.0,0.23082523]
[1761883264629,2.40619868,109440.0,109430.0,0.23082523]
[1761883264799,0.40619868,109440.0,109430.0,0.23082523]
[1761883264991,0.80383922,109440.0,109430.0,0.23082523]
[1761883265254,0.80743845,109440.0,109430.0,0.23082523]
[1761883265714,1.15660222,109440.0,109430.0,0.23082523]
[1761883265931,1.14804589,109440.0,109430.0,0.23082523]
[1761883266111,3.22533031,109440.0,109430.0,0.23082523]
[1761883266318,3.22533031,109440.0,109430.0,0.23282523]
[1761883266459,3.23921031,109440.0,109430.0,0.21280523]
[1761883266670,3.22533031,109440.0,109430.0,0.23582523]
[1761883267657,3.21677395,109440.0,109430.0,0.23582523]
[1761883267800,2.87677395,109440.0,109430.0,0.23582523]
[1761883268006,3.21677395,109440.0,109430.0,0.23582523]
[1761883269924,3.21625624,109440.0,109430.0,0.23582523]
[1761883270421,1.21625624,109440.0,109430.0,0.23582523]
[1761883270616,0.81913341,109440.0,109430.0,0.23582523]
[1761883271116,1.21677395,109440.0,109430.0,0.23582523]
[1761883271496,0.42032724,109440.0,109430.0,0.23582523]
[1761883271702,1.21560832,109440.0,109430.0,0.23582523]
[1761883271906,1.22254832,109440.0,109430.0,0.23582523]
[1761883272110,3.41917685,109440.0,109430.0,0.005]
[1761883272290,3.83069739,109440.0,109430.0,0.005]
[1761883272710,3.85813938,109440.0,109430.0,0.005]
[1761883273135,2.52276523,109430.0,109420.0,0.19277505]
[1761883273295,3.43562532,109430.0,109420.0,0.00022311]
[1761883274968,3.43547081,109430.0,109420.0,0.00022311]
[1761883275197,3.42159081,109430.0,109420.0,0.18300505]
[1761883275354,3.23882558,109430.0,109420.0,0.23398505]
[1761883275557,0.73696855,109430.0,109420.0,0.23598505]
[1761883276539,0.33932801,109430.0,109420.0,0.23598505]
[1761883276745,0.73696855,109430.0,109420.0,0.23598505]
[1761883278412,0.39764054,109430.0,109420.0,0.23598505]
[1761883279381,0.39780959,109430.0,109420.0,0.23598505]
[1761883281043,0.3977614,109430.0,109420.0,0.23598505]
[1761883281923,0.39770954,109430.0,109420.0,0.23598505]
[1761883282725,0.68215869,109440.0,109430.0,0.18276523]
[1761883282726,2.43465936,109440.0,109430.0,0.18276523]
[1761883282927,2.83246895,109440.0,109430.0,0.23437523]
[1761883284951,3.23027854,109440.0,109430.0,0.23437523]
[1761883285602,3.41302707,109440.0,109430.0,0.23437523]
[1761883285738,3.43484707,109440.0,109430.0,0.0281]
[1761883285996,3.43384707,109440.0,109430.0,0.003]
[1761883286202,3.44772707,109440.0,109430.0,0.003]
[1761883286398,3.44772707,109440.0,109430.0,0.004]
[1761883286603,3.43384707,109440.0,109430.0,0.18676523]
[1761883286806,3.23716773,109440.0,109430.0,0.21486523]
[1761883287003,3.23716773,109440.0,109430.0,0.23837523]
[1761883287207,3.23716773,109440.0,109430.0,0.23737523]
[1761883287465,3.43479626,109440.0,109430.0,0.21386523]
[1761883287896,3.43479626,109440.0,109430.0,0.21086523]
[1761883288168,3.43479626,109440.0,109430.0,0.23437523]
[1761883288589,3.43379626,109440.0,109430.0,0.21086523]
[1761883288796,3.45350133,109440.0,109430.0,0.21086523]
[1761883289073,3.43379626,109440.0,109430.0,0.23637523]
[1761883289250,3.43962866,109440.0,109430.0,0.23637523]
[1761883289419,3.26543696,109440.0,109430.0,0.23637523]
[1761883289649,0.43460855,109440.0,109430.0,0.23637523]
[1761883289863,0.81803521,109440.0,109430.0,0.27944326]
[1761883290101,0.81803521,109440.0,109430.0,0.23637523]
[1761883291469,0.35149756,109440.0,109430.0,0.23637523]
[1761883291848,0.74930715,109440.0,109430.0,0.23637523]
[1761883292405,0.74939525,109440.0,109430.0,0.23637523]
[1761883293700,0.35148299,109440.0,109430.0,0.23637523]
[1761883294024,0.74929258,109440.0,109430.0,0.23637523]
[1761883295790,0.40929258,109440.0,109430.0,0.23637523]
[1761883296043,0.74929258,109440.0,109430.0,0.23637523]
[1761883296420,0.74918991,109440.0,109430.0,0.23637523]
[1761883296856,0.35138032,109440.0,109430.0,0.23637523]
[1761883297057,0.74918991,109440.0,109430.0,0.23637523]
[1761883301152,1.1469995,109440.0,109430.0,0.23637523]
[1761883301493,1.14692277,109440.0,109430.0,0.23637523]
[1761883303301,0.74911318,109440.0,109430.0,0.23637523]
[1761883303912,0.74911318,109440.0,109430.0,0.27944326]
[1761883304697,0.74911318,109440.0,109430.0,0.23637523]
[1761883305882,1.14692277,109440.0,109430.0,0.23637523]
[1761883306095,1.14692277,109440.0,109430.0,0.19704523]
[1761883306096,1.3504913,109440.0,109430.0,0.19704523]
[1761883306439,3.3788105,109440.0,109430.0,0.02956]
[1761883307060,3.48250951,109440.0,109430.0,0.002]
[1761883307618,3.50984202,109440.0,109430.0,0.002]
[1761883310631,3.49596202,109440.0,109430.0,0.002]
[1761883312074,3.97145705,109440.0,109430.0,0.002]
[1761883312281,3.98579465,109440.0,109430.0,0.002]
[1761883312500,3.58798845,109440.0,109430.0,0.002]
[1761883312701,3.58798845,109440.0,109420.0,0.00022311]
[1761883312702,2.55894751,109430.0,109420.0,0.00022311]
[1761883312908,3.50046991,109430.0,109420.0,0.00022311]
[1761883313087,3.52780242,109430.0,109420.0,0.00022311]
[1761883313526,3.54213648,109430.0,109420.0,0.00022311]
[1761883314158,3.14432689,109430.0,109420.0,0.00022311]
[1761883314362,3.14532689,109430.0,109420.0,0.00022311]
[1761883314982,3.54313648,109430.0,109420.0,0.00022311]
[1761883316013,3.14532689,109430.0,109420.0,0.00022311]
[1761883316193,3.54313648,109430.0,109420.0,0.00022311]
[1761883317045,3.13099283,109430.0,109420.0,0.00022311]
[1761883317253,3.130981,109430.0,109420.0,0.00022311]
[1761883321051,3.52879059,109430.0,109420.0,0.00022311]
[1761883321258,3.55641213,109430.0,109420.0,0.00022311]
[1761883321461,3.55741213,109430.0,109420.0,0.00022311]
[1761883321667,3.99271073,109430.0,109420.0,0.00022311]
[1761883321850,3.93775668,109430.0,109420.0,1e-08]
[1761883322051,0.00914076,109400.0,109370.0,0.20429751]
[1761883322293,3.33928796,109380.0,109370.0,0.21957751]
[1761883322711,3.40735434,109380.0,109370.0,0.21957751]
[1761883322921,3.40735434,109380.0,109370.0,0.22069366]
[1761883323304,3.49717335,109380.0,109370.0,0.19675433]
[1761883323539,2.70155417,109380.0,109370.0,0.21303433]
[1761883323748,2.91651498,109380.0,109370.0,0.21303433]
[1761883324401,2.91651498,109380.0,109370.0,0.23636433]
[1761883325618,2.91651498,109380.0,109370.0,0.23836433]
[1761883326461,3.09936376,109380.0,109370.0,0.21503433]
[1761883326880,3.09936376,109380.0,109370.0,0.00459883]
[1761883326881,3.51105335,109380.0,109370.0,0.00459883]
[1761883327088,3.49717335,109380.0,109370.0,0.00459883]
[1761883327294,3.49717335,109380.0,109370.0,0.01987883]
[1761883327688,3.49717335,109380.0,109370.0,0.00459883]
[1761883327689,3.51105335,109380.0,109370.0,0.00459883]
[1761883327945,3.53838586,109380.0,109370.0,0.00459883]
[1761883330400,3.57456814,109380.0,109370.0,0.00459883]
[1761883331502,3.57456814,109380.0,109370.0,0.00259883]
[1761883332175,3.59421088,109380.0,109370.0,0.00259883]
[1761883332401,3.59421088,109380.0,109370.0,0.00159883]
[1761883333527,2.56568064,109380.0,109370.0,0.01687883]
[1761883333754,3.11370412,109380.0,109370.0,0.05249883]
[1761883334030,3.11370412,109380.0,109370.0,0.02916883]
[1761883334856,3.11370412,109380.0,109370.0,0.03116883]
[1761883335561,3.11370412,109380.0,109370.0,0.21403433]
[1761883335746,3.52539371,109380.0,109370.0,0.00359883]
[1761883336192,3.52539371,109380.0,109370.0,0.00459883]
[1761883336396,3.57237531,109380.0,109370.0,0.00459883]
[1761883338384,3.58090739,109380.0,109370.0,0.00459883]
[1761883338997,3.57237531,109380.0,109370.0,0.00459883]
[1761883339421,3.58090967,109380.0,109370.0,0.00459883]
[1761883339975,2.93085534,109380.0,109370.0,0.23976433]
[1761883340212,3.09982412,109380.0,109370.0,0.23976433]
[1761883341214,3.09982412,109380.0,109370.0,0.05689883]
[1761883341418,3.51219275,109380.0,109370.0,0.05689883]
[1761883341686,3.51219275,109380.0,109370.0,0.03191883]
[1761883342172,3.51219275,109380.0,109370.0,0.21478433]
[1761883343094,3.51219275,109380.0,109370.0,0.03191883]
[1761883343293,3.91034186,109380.0,109370.0,0.00459883]
[1761883343521,3.52073849,109380.0,109370.0,0.00459883]
[1761883344010,3.52073849,109380.0,109370.0,0.21478433]
[1761883344217,3.54043158,109380.0,109370.0,0.03191883]
[1761883345443,3.54043158,109380.0,109370.0,0.01678883]
[1761883346125,3.59858069,109380.0,109370.0,0.01678883]
[1761883346680,3.59858069,109380.0,109370.0,0.03191883]
[1761883346779,3.59858069,109380.0,109370.0,0.01678883]
[1761883347226,3.59858069,109380.0,109370.0,0.00459883]
[1761883347641,3.61246069,109380.0,109370.0,0.00459883]
[1761883348944,3.59858069,109380.0,109370.0,0.00459883]
[1761883349347,3.93858069,109380.0,109370.0,0.00459883]
[1761883349552,3.54043158,109380.0,109370.0,0.21478433]
[1761883350229,3.54043158,109380.0,109370.0,0.03191883]
[1761883351114,3.93858069,109380.0,109370.0,0.03191883]
[1761883351336,3.95246069,109380.0,109370.0,0.00459883]
[1761883351553,3.9797932,109380.0,109370.0,0.00459883]
[1761883352416,5.23803389,109380.0,109370.0,0.00459883]
[1761883352629,5.22369353,109380.0,109370.0,0.00459883]
[1761883352922,4.0292462,109380.0,109370.0,0.00459883]
[1761883353375,4.0292462,109380.0,109370.0,0.00159883]
[1761883354292,4.00163512,109380.0,109370.0,0.00159883]
[1761883355681,4.01597556,109380.0,109370.0,0.00159883]
[1761883357747,4.01605153,109380.0,109370.0,0.00159883]
[1761883365990,4.00171109,109380.0,109370.0,0.00159883]
[1761883369153,4.01605196,109380.0,109370.0,0.00159883]
[1761883369577,3.839793,109380.0,109370.0,0.00159883]
[1761883370776,3.86740408,109380.0,109370.0,0.00159883]
[1761883370978,3.95722309,109380.0,109370.0,0.00159883]
[1761883371175,3.86740408,109380.0,109370.0,0.00159883]
[1761883380349,3.8817479,109380.0,109370.0,0.00159883]
[1761883380751,3.88009408,109380.0,109370.0,0.00159883]
[1761883380898,3.88010465,109380.0,109370.0,0.00159883]
[1761883381099,3.86741465,109380.0,109370.0,0.00159883]
[1761883381507,3.88010465,109380.0,109370.0,0.00159883]
[1761883382074,5.31925198,109380.0,109370.0,0.00159883]
[1761883382283,0.5228655,109370.0,109360.0,0.0004]
[1761883382484,3.74190184,109370.0,109360.0,0.00044826]
[1761883382846,3.74190184,109370.0,109360.0,0.00067156]
[1761883383051,3.74556853,109370.0,109360.0,0.00067156]
[1761883383445,3.76272615,109370.0,109360.0,0.00067156]
[1761883383655,3.77707235,109370.0,109360.0,0.00067156]
[1761883387267,3.77340566,109370.0,109360.0,0.00067156]
[1761883388115,3.78774894,109370.0,109360.0,0.00067156]
[1761883390457,3.78772866,109370.0,109360.0,0.00067156]
[1761883390972,2.59328133,109370.0,109360.0,0.00067156]
[1761883391180,3.78772866,109370.0,109360.0,0.00067156]
[1761883396401,0.18289894,109350.0,109340.0,0.0004]
[1761883396601,3.71198594,109350.0,109340.0,0.00044826]
[1761883396807,3.78670916,109350.0,109340.0,0.00044826]
[1761883398325,3.80105537,109350.0,109340.0,0.00044826]
[1761883399183,3.79170916,109350.0,109340.0,0.00044826]
[1761883399418,4.18985827,109350.0,109340.0,0.00044826]
[1761883399674,3.79170916,109350.0,109340.0,0.00044826]
[1761883400098,4.18985827,109350.0,109340.0,0.00044826]
[1761883400303,3.80605863,109350.0,109340.0,0.00044826]
[1761883401512,4.05227195,109350.0,109340.0,0.00044826]
[1761883402043,4.05227195,109350.0,109340.0,0.00089496]
[1761883402249,4.0666178,109350.0,109340.0,0.00089496]
[1761883402623,4.03900672,109350.0,109340.0,0.00089496]
[1761883403033,4.01167421,109350.0,109340.0,0.00089496]
[1761883403178,4.01161757,109350.0,109340.0,0.00089496]
[1761883403786,3.61296402,109350.0,109340.0,0.00089496]
[1761883403985,3.56290174,109350.0,109340.0,0.00089496]
[1761883404214,3.57678174,109350.0,109340.0,0.00089496]
[1761883404628,3.61296402,109350.0,109340.0,0.00089496]
[1761883404791,3.60996402,109350.0,109340.0,0.00089496]
[1761883405001,3.60896402,109350.0,109340.0,0.00089496]
[1761883405202,3.60996402,109350.0,109340.0,0.00089496]
[1761883405612,3.59282668,109350.0,109340.0,0.00089496]
[1761883405796,3.6099495,109350.0,109340.0,0.00089496]
[1761883406425,3.6089495,109350.0,109340.0,0.00089496]
[1761883407550,3.6079495,109350.0,109340.0,0.00089496]
[1761883408968,3.5940695,109350.0,109340.0,0.01693496]
[1761883409385,3.6079495,109350.0,109340.0,0.00089496]
[1761883410772,3.59360003,109350.0,109340.0,0.00089496]
[1761883412388,3.57925418,109350.0,109340.0,0.00089496]
[1761883413374,3.33455418,109350.0,109340.0,0.00089496]
[1761883414763,3.2706119,109350.0,109340.0,0.05327496]
[1761883415403,3.28495634,109350.0,109340.0,0.05327496]
[1761883415982,3.29883634,109350.0,109340.0,0.02828496]
[1761883417136,3.29883634,109350.0,109340.0,0.05327496]
[1761883417381,3.29883634,109350.0,109340.0,0.02828496]
[1761883418429,3.29883634,109350.0,109340.0,0.25448219]
[1761883418430,0.05119025,109350.0,109340.0,0.25448219]
[1761883418607,0.39865355,109350.0,109340.0,0.23619063]
[1761883419248,0.73865355,109350.0,109340.0,0.23619063]
[1761883419464,1.21117245,109350.0,109340.0,0.23619063]
[1761883420085,0.8125189,109350.0,109340.0,0.23919063]
[1761883420291,0.8125189,109350.0,109340.0,0.24519063]
[1761883420894,0.73865355,109350.0,109340.0,0.24519063]
[1761883423119,0.39865355,109350.0,109340.0,0.24519063]
[1761883426201,0.19722455,109360.0,109350.0,0.18289894]
[1761883426403,2.41299555,109360.0,109350.0,0.23418894]
[1761883426613,2.41299555,109360.0,109350.0,0.23441227]
[1761883427020,2.75299555,109360.0,109350.0,0.23441227]
[1761883427221,2.354342,109360.0,109350.0,0.23441227]
[1761883427421,2.75299555,109360.0,109350.0,0.23841227]
[1761883427703,2.75299555,109360.0,109350.0,0.24041227]
[1761883427917,2.93587777,109360.0,109350.0,0.24041227]
[1761883428266,2.75299555,109360.0,109350.0,0.24041227]
[1761883430414,2.354342,109360.0,109350.0,0.24041227]
[1761883430580,0.354342,109360.0,109350.0,0.24041227]
[1761883430787,0.75299555,109360.0,109350.0,0.24041227]
[1761883431210,0.354342,109360.0,109350.0,0.24041227]
[1761883431387,0.354342,109360.0,109350.0,0.3577234]
[1761883431586,0.34,109360.0,109350.0,0.37602157]
[1761883432798,0.34,109360.0,109350.0,0.3577234]
[1761883433438,0.73865355,109360.0,109350.0,0.3577234]
[1761883434405,0.73865355,109360.0,109350.0,0.26790439]
[1761883437947,0.34,109360.0,109350.0,0.26790439]
[1761883438150,0.73865355,109360.0,109350.0,0.26790439]
[1761883441472,0.0006079,109370.0,109360.0,0.18288222]
[1761883441613,0.0006079,109370.0,109360.0,0.23417222]
[1761883441820,0.3406079,109370.0,109360.0,0.23417222]
[1761883442062,0.73926145,109370.0,109360.0,0.23417222]
[1761883442623,0.73926145,109370.0,109360.0,0.23717222]
[1761883443203,0.39926145,109370.0,109360.0,0.23617222]
[1761883443317,0.0006079,109370.0,109360.0,0.23917222]
[1761883443523,0.0006079,109370.0,109360.0,0.75513305]
[1761883443934,0.0006079,109370.0,109360.0,0.75313305]
[1761883444357,0.0006079,109370.0,109360.0,0.3584795]
[1761883444768,0.0006079,109370.0,109360.0,0.3544795]
[1761883445203,0.0006079,109370.0,109360.0,0.3624795]
[1761883445782,0.0006079,109370.0,109360.0,0.3594795]
[1761883446184,0.0006079,109370.0,109360.0,0.3634795]
[1761883447285,0.0006079,109370.0,109360.0,0.33599123]
[1761883448117,0.39926145,109370.0,109360.0,0.33599123]
[1761883448318,0.4391876,109370.0,109360.0,0.24617222]
[1761883448914,0.4391876,109370.0,109360.0,0.23417222]
[1761883449324,0.4391876,109370.0,109360.0,0.23617222]
[1761883449663,0.39926145,109370.0,109360.0,0.23617222]
[1761883449806,0.0006079,109370.0,109360.0,0.23617222]
[1761883450008,0.39926145,109370.0,109360.0,0.23617222]
[1761883450575,0.39926145,109370.0,109360.0,0.24017222]
[1761883453602,0.0006079,109370.0,109360.0,0.24017222]
[1761883453834,0.0006079,109370.0,109360.0,0.28366867]
[1761883454253,0.0006079,109370.0,109360.0,0.37348768]
[1761883455398,0.0006079,109370.0,109360.0,0.77214123]
[1761883456502,0.0006079,109370.0,109360.0,0.76614123]
[1761883456717,0.0006079,109370.0,109360.0,0.77314123]
[1761883457171,0.0006079,109370.0,109360.0,0.77714123]
[1761883458912,1e-08,109370.0,109360.0,0.81332351]
[1761883459112,1e-08,109370.0,109360.0,0.8233235]
[1761883459719,1e-08,109370.0,109360.0,0.85080658]
[1761883461435,1e-08,109370.0,109360.0,1.24804459]
[1761883462188,1e-08,109370.0,109360.0,0.85009881]
[1761883462868,1e-08,109370.0,109360.0,0.8600988]
[1761883463009,1e-08,109370.0,109360.0,0.99579881]
[1761883463212,1e-08,109370.0,109360.0,1.0057988]
[1761883463884,1e-08,109370.0,109360.0,1.40374458]
[1761883464376,1e-08,109370.0,109360.0,1.74374458]
[1761883466605,1e-08,109370.0,109360.0,2.23815036]
[1761883466795,1e-08,109370.0,109360.0,2.09245036]
[1761883466934,1e-08,109370.0,109360.0,2.23815036]
[1761883467139,1e-08,109370.0,109360.0,2.09245036]
[1761883468168,1e-08,109370.0,109360.0,2.08845036]
[1761883468658,1e-08,109370.0,109360.0,2.08645036]
[1761883468999,1e-08,109370.0,109360.0,2.09745036]
[1761883469924,1e-08,109370.0,109360.0,1.69950458]
[1761883470108,1e-08,109370.0,109360.0,1.68950459]
[1761883470820,1e-08,109370.0,109360.0,1.69950458]
[1761883472484,1e-08,109370.0,109360.0,1.68950459]
[1761883472611,1e-08,109370.0,109360.0,1.69950458]
[1761883474247,1e-08,109370.0,109360.0,0.79715303]
[1761883474447,1e-08,109370.0,109360.0,1.59304459]
[1761883475058,1e-08,109370.0,109360.0,1.60304458]
[1761883476293,1e-08,109370.0,109360.0,1.5830446]
[1761883478049,1e-08,109370.0,109360.0,0.70747431]
[1761883478391,1e-08,109370.0,109360.0,1.10542009]
[1761883478593,1e-08,109370.0,109360.0,0.79060237]
[1761883478819,1e-08,109370.0,109360.0,0.78560237]
[1761883479067,1e-08,109370.0,109360.0,0.79260237]
[1761883479297,1e-08,109370.0,109360.0,0.88542138]
[1761883479420,1e-08,109370.0,109360.0,0.87542138]
[1761883479828,1e-08,109370.0,109360.0,0.79560237]
[1761883480028,1e-08,109370.0,109360.0,1.93149393]
[1761883480467,1e-08,109370.0,109360.0,1.53354815]
[1761883480667,1e-08,109370.0,109360.0,1.93149393]
[1761883481092,1e-08,109370.0,109360.0,2.01795393]
[1761883481296,1e-08,109370.0,109360.0,0.9139356]
[1761883481490,1e-08,109370.0,109360.0,1.91255378]
[1761883481666,1e-08,109370.0,109360.0,1.90855378]
[1761883481866,1e-08,109370.0,109360.0,1.92955375]
[1761883482250,1e-08,109370.0,109360.0,1.94055375]
[1761883482451,1e-08,109370.0,109360.0,1.94555375]
[1761883482649,1e-08,109370.0,109360.0,1.93455375]
[1761883482910,1e-08,109370.0,109360.0,1.94155375]
[1761883483121,1e-08,109370.0,109360.0,1.94755375]
[1761883483947,1e-08,109370.0,109360.0,1.04382559]
[1761883484198,1e-08,109370.0,109360.0,1.94755375]
[1761883491455,0.802399,109440.0,109430.0,0.18276523]
[1761883491659,0.802399,109440.0,109430.0,0.21057523]
[1761883491869,0.802399,109440.0,109430.0,0.23368523]
[1761883492577,0.80288142,109440.0,109430.0,0.23368523]
[1761883494202,0.35101734,109440.0,109430.0,0.27633395]
[1761883495263,0.35101734,109440.0,109430.0,0.23368523]
[1761883495412,0.35101734,109440.0,109430.0,0.32550424]
[1761883497082,0.35257918,109440.0,109430.0,0.32550424]
[1761883499369,0.01257918,109440.0,109430.0,0.32550424]
[1761883500929,0.46444326,109440.0,109430.0,0.32550424]
[1761883501426,0.00204426,109440.0,109430.0,0.77490985]
[1761883501876,1e-08,109440.0,109430.0,0.81109213]
[1761883502275,1e-08,109440.0,109430.0,1.17109211]
[1761883502441,1e-08,109440.0,109430.0,1.19855599]
[1761883502838,1e-08,109440.0,109430.0,1.19655599]
[1761883503211,1e-08,109440.0,109430.0,1.59413098]
[1761883503410,1e-08,109440.0,109430.0,1.20055599]
[1761883503624,1e-08,109440.0,109430.0,1.59813098]
[1761883503987,1e-08,109440.0,109430.0,1.59613098]
[1761883504189,1e-08,109440.0,109430.0,1.59413098]
[1761883504444,1e-08,109440.0,109430.0,1.60413098]
[1761883504803,1e-08,109440.0,109430.0,1.59413098]
[1761883505003,1e-08,109440.0,109430.0,1.59813098]
[1761883505408,1e-08,109460.0,109450.0,0.24672412]
[1761883505608,1e-08,109460.0,109450.0,1.18913096]
[1761883505807,1e-08,109460.0,109450.0,0.41709098]
[1761883506036,1e-08,109460.0,109450.0,0.44454996]
[1761883506637,0.75699163,109490.0,109480.0,0.21049176]
[1761883506638,0.35921664,109490.0,109480.0,0.21049176]
[1761883506841,0.75679163,109490.0,109480.0,0.21049176]
[1761883507026,0.75679163,109490.0,109480.0,0.23360176]
[1761883507698,0.35921664,109490.0,109480.0,0.23360176]
[1761883507900,0.75679163,109490.0,109480.0,0.23560176]
[1761883508133,0.35921664,109490.0,109480.0,0.23560176]
[1761883508319,0.75679163,109490.0,109480.0,0.23560176]
[1761883511230,0.35921664,109490.0,109480.0,0.23560176]
[1761883511444,0.75679163,109490.0,109480.0,0.23560176]
[1761883511657,0.35921664,109490.0,109480.0,0.23560176]
[1761883511862,0.75679163,109490.0,109480.0,0.23560176]
[1761883512067,0.03354073,109490.0,109480.0,0.32542077]
[1761883512278,0.03354073,109490.0,109480.0,0.37741369]
[1761883512496,0.0342095,109490.0,109480.0,0.37741369]
[1761883512706,0.0342095,109490.0,109480.0,0.32542077]
[1761883512914,0.01988541,109490.0,109480.0,0.32542077]
[1761883513594,0.01988541,109490.0,109480.0,0.32342077]
[1761883513800,0.01988541,109490.0,109480.0,0.32742077]
[1761883514215,0.01988541,109490.0,109480.0,0.32842077]
[1761883514432,0.4174604,109490.0,109480.0,0.32842077]
[1761883518266,0.01988541,109490.0,109480.0,0.32842077]
[1761883518484,0.4174604,109490.0,109480.0,0.32842077]
[1761883520461,10.18362368,109500.0,109490.0,0.18266508]
[1761883520661,12.92134337,109500.0,109490.0,0.23352508]
[1761883521207,12.93171524,109500.0,109490.0,0.23352508]
[1761883522710,12.93171524,109500.0,109490.0,0.23552508]
[1761883523367,12.13656526,109500.0,109490.0,0.23552508]
[1761883523619,12.53382262,109500.0,109490.0,0.23552508]
[1761883523845,12.54076262,109500.0,109490.0,0.21185508]
[1761883524067,12.93801998,109500.0,109490.0,0.23552508]
[1761883524285,12.54076262,109500.0,109490.0,0.23552508]
[1761883524940,12.53382262,109500.0,109490.0,0.23552508]
[1761883525335,12.71647102,109500.0,109490.0,0.23552508]
[1761883526320,12.7166939,109500.0,109490.0,0.23552508]
[1761883526584,12.5340455,109500.0,109490.0,0.23552508]
[1761883527020,12.7166939,109500.0,109490.0,0.23552508]
[1761883527234,12.5340455,109500.0,109490.0,0.23552508]
[1761883528350,12.13678814,109500.0,109490.0,0.23552508]
[1761883528576,12.5340455,109500.0,109490.0,0.23552508]
[1761883530437,12.55375439,109500.0,109490.0,0.23552508]
[1761883532500,12.56232159,109500.0,109490.0,0.23552508]
[1761883533961,12.16506423,109500.0,109490.0,0.23552508]
[1761883534163,12.56232159,109500.0,109490.0,0.23552508]
[1761883535142,12.57947301,109500.0,109490.0,0.23552508]
[1761883535350,13.19392985,109500.0,109490.0,0.002]
[1761883535941,13.19392985,109500.0,109490.0,0.01731]
[1761883536143,13.19392985,109500.0,109490.0,0.21185508]
[1761883536333,13.19392985,109500.0,109490.0,0.20985508]
[1761883536800,13.19392985,109500.0,109490.0,0.02719]
[1761883536999,13.21816429,109500.0,109490.0,0.02719]
[1761883537216,13.21816429,109500.0,109490.0,0.02919]
[1761883540610,13.3218633,109500.0,109490.0,0.002]
[1761883541238,13.34932671,109500.0,109490.0,0.002]
[1761883543158,13.38550899,109500.0,109490.0,0.002]
[1761883544171,13.3998348,109500.0,109490.0,0.002]
[1761883546132,13.79709216,109500.0,109490.0,0.002]
[1761883546346,13.79809216,109500.0,109490.0,0.002]
[1761883546586,13.79709216,109500.0,109490.0,0.002]
[1761883546801,13.79809216,109500.0,109490.0,0.002]
[1761883548376,13.79709216,109500.0,109490.0,0.002]
[1761883548603,13.3998348,109500.0,109490.0,0.002]
[1761883549618,13.38268338,109500.0,109490.0,0.002]
[1761883549798,13.39979695,109500.0,109490.0,0.002]
[1761883550151,13.40079695,109500.0,109490.0,0.002]
[1761883550997,13.39979695,109500.0,109490.0,0.002]
[1761883553001,13.33600359,109500.0,109490.0,0.002]
[1761883553866,12.90063179,109500.0,109490.0,0.02998]